bitfinex/quotes_SOLUSD_20241122
["timestamp","ask_amount","ask_price","bid_price","bid_amount"]
[1732293630569,12.08423778,254.43,254.34,12.08423778]
[1732293631374,12.08423778,254.41,254.3,21.0447]
[1732293631576,12.08423778,254.43,254.35,20.0]
[1732293632771,12.08423778,254.43,254.34,12.08423778]
[1732293632772,12.08423778,254.39,254.32,12.08423778]
[1732293632979,12.08423778,254.37,254.3,15.0271]
[1732293633771,12.08423778,254.37,254.28,12.08423778]
[1732293634179,12.08423778,254.33,254.26,12.08423778]
[1732293634675,12.08423778,254.33,254.24,27.65343778]
[1732293635059,12.08423778,254.33,254.16,6.2595]
[1732293635060,12.08423778,254.31,254.22,12.08423778]
[1732293635376,12.08423778,254.29,254.2,12.08423778]
[1732293635764,12.08423778,254.25,254.18,12.08423778]
[1732293636099,12.08423778,254.21,254.14,12.08423778]
[1732293636257,12.08423778,254.19,254.13,15.4519]
[1732293636680,12.08423778,254.19,254.12,12.08423778]
[1732293636976,12.08423778,254.17,254.1,12.08423778]
[1732293637376,6.6455,254.25,254.1,12.08423778]
[1732293637377,12.08423778,254.19,254.1,12.08423778]
[1732293637578,12.08423778,254.17,254.07,16.0212]
[1732293637873,12.08423778,254.15,254.07,16.0212]
[1732293638479,12.08423778,254.15,254.06,12.08423778]
[1732293638865,12.08423778,254.17,254.08,12.08423778]
[1732293639181,12.08423778,254.22,254.14,12.08423778]
[1732293640170,12.08423778,254.24,254.14,12.08423778]
[1732293640385,12.08423778,254.28,254.2,12.08423778]
[1732293640572,12.08423778,254.28,254.17,20.0]
[1732293640573,12.08423778,254.22,254.17,20.0]
[1732293640976,12.08423778,254.22,254.15,20.0]
[1732293642589,12.08423778,254.22,254.14,12.08423778]
[1732293642968,12.08423778,254.18,254.13,20.0]
[1732293643565,12.08423778,254.14,254.06,12.08423778]
[1732293643871,12.08423778,254.16,254.08,12.08423778]
[1732293644991,12.08423778,254.18,254.11,20.0]
[1732293645492,12.08423778,254.16,254.09,20.0]
[1732293645698,12.08423778,254.16,254.08,12.08423778]
[1732293645699,12.08423778,254.14,254.07,20.0]
[1732293645988,12.08423778,254.15,254.07,32.08423778]
[1732293648165,12.08423778,254.13,254.06,20.0]
[1732293648495,6.4332,254.25,253.96,16.3776]
[1732293648496,12.08423778,254.07,253.96,16.3776]
[1732293648695,12.08423778,254.07,253.98,12.08423778]
[1732293649172,12.08423778,254.05,253.98,12.08423778]
[1732293649992,23.776884,254.14,253.96,16.3776]
[1732293649993,12.08423778,254.11,254.03,12.08423778]
[1732293650295,12.08423778,254.13,254.05,12.08423778]
[1732293650997,12.08423778,254.11,254.04,20.0]
[1732293653699,23.776884,254.14,254.08,12.08423778]
[1732293653901,12.08423778,254.17,254.09,20.0]
[1732293654573,12.08423778,254.17,254.1,12.08423778]
[1732293655166,12.08423778,254.17,254.09,20.0]
[1732293655999,12.08423778,254.13,254.04,12.08423778]
[1732293656286,12.08423778,254.13,254.05,20.0]
[1732293659600,12.08423778,254.13,254.06,12.08423778]
[1732293659794,12.08423778,254.15,254.07,20.0]
[1732293660100,12.08423778,254.17,254.08,12.08423778]
[1732293660598,12.08423778,254.15,254.06,12.08423778]
[1732293660898,12.08423778,254.11,254.07,20.0]
[1732293661275,12.08423778,254.11,254.03,20.0]
[1732293661479,12.08423778,254.11,254.02,12.08423778]
[1732293661677,12.08423778,254.07,253.98,12.08423778]
[1732293662996,6.3648,254.12,254.04,12.08423778]
[1732293663199,12.08423778,254.13,254.04,12.08423778]
[1732293663494,12.08423778,254.13,254.06,12.08423778]
[1732293664393,12.08423778,254.15,254.06,12.08423778]
[1732293665287,12.08423778,254.13,254.04,12.08423778]
[1732293665789,12.08423778,254.15,254.06,12.08423778]
[1732293666783,12.08423778,254.15,254.08,12.08423778]
[1732293667000,12.08423778,254.15,254.06,12.08423778]
[1732293668281,12.08423778,254.13,254.06,12.08423778]
[1732293668482,12.08423778,254.13,254.04,12.08423778]
[1732293668687,12.08423778,254.11,254.02,12.08423778]
[1732293669185,12.08423778,254.11,254.04,12.08423778]
[1732293669385,12.08423778,254.13,254.04,12.08423778]
[1732293670181,12.08423778,254.11,254.02,12.08423778]
[1732293670402,12.08423778,254.09,254.03,20.0]
[1732293670709,12.08423778,254.09,254.01,20.0]
[1732293671080,12.08423778,254.11,254.04,12.08423778]
[1732293671287,12.08423778,254.13,254.05,20.0]
[1732293671588,12.08423778,254.15,254.06,12.08423778]
[1732293673705,12.08423778,254.09,254.02,12.08423778]
[1732293673908,12.08423778,254.09,254.03,20.0]
[1732293674207,12.08423778,254.11,254.03,20.0]
[1732293675102,12.08423778,254.11,254.02,12.08423778]
[1732293676408,12.08423778,254.09,254.0,12.08423778]
[1732293676606,12.08423778,254.09,253.96,22.903]
[1732293676607,12.08423778,254.06,253.98,12.08423778]
[1732293677693,12.08423778,254.06,253.99,20.0]
[1732293678805,12.08423778,254.08,254.0,12.08423778]
[1732293679614,12.08423778,254.04,253.96,28.46183778]
[1732293680114,12.08423778,254.04,253.9,6.2795]
[1732293680115,15.5424,254.09,253.94,12.08423778]
[1732293680319,12.08423778,254.02,253.94,12.08423778]
[1732293680897,12.08423778,254.0,253.92,12.08423778]
[1732293681192,12.08423778,254.04,253.94,12.08423778]
[1732293681392,12.08423778,254.04,253.96,12.08423778]
[1732293681698,23.776884,254.05,253.98,12.08423778]
[1732293682492,23.776884,254.05,253.96,12.08423778]
[1732293683007,23.776884,254.05,253.98,12.08423778]
[1732293683207,12.08423778,254.06,253.98,12.08423778]
[1732293684408,12.08423778,254.06,253.96,12.08423778]
[1732293684709,12.08423778,254.06,253.91,20.0]
[1732293684710,12.08423778,254.02,253.94,12.08423778]
[1732293685305,12.08423778,254.0,253.92,12.08423778]
[1732293686506,12.08423778,254.02,253.92,12.08423778]
[1732293687303,12.08423778,254.02,253.94,12.08423778]
[1732293687719,12.08423778,254.04,253.96,12.08423778]
[1732293687922,23.776884,254.03,253.96,12.08423778]
[1732293688319,23.776884,254.03,253.94,12.08423778]
[1732293688320,12.08423778,254.02,253.94,12.08423778]
[1732293688623,23.776884,254.03,253.92,12.08423778]
[1732293688624,12.08423778,254.0,253.92,12.08423778]
[1732293689310,12.08423778,254.02,253.94,12.08423778]
[1732293690702,12.08423778,254.0,253.93,20.0]
[1732293691116,12.08423778,253.98,253.9,28.33563778]
[1732293691308,12.08423778,253.98,253.9,12.08423778]
[1732293692208,12.08423778,253.96,253.88,12.08423778]
[1732293692624,12.08423778,253.98,253.9,12.08423778]
[1732293694010,12.08423778,254.0,253.92,12.08423778]
[1732293694321,23.776884,254.01,253.94,12.08423778]
[1732293694533,12.08423778,254.02,253.95,20.0]
[1732293694732,12.08423778,254.04,253.96,12.08423778]
[1732293695624,12.08423778,254.02,253.95,20.0]
[1732293697713,12.08423778,254.06,253.98,12.08423778]
[1732293698024,12.08423778,254.06,253.97,20.0]
[1732293698025,12.08423778,254.04,253.97,20.0]
[1732293699231,12.08423778,254.06,253.97,20.0]
[1732293699417,12.08423778,254.06,253.98,12.08423778]
[1732293699806,12.08423778,254.04,253.97,20.0]
[1732293700208,12.08423778,254.02,253.97,20.0]
[1732293700511,12.08423778,254.02,253.95,20.0]
[1732293701011,12.08423778,254.04,253.96,12.08423778]
[1732293701214,12.08423778,254.04,253.97,20.0]
[1732293704735,7.72077914,254.05,253.97,7.72077914]
[1732293705046,7.72077914,254.05,253.98,20.0]
[1732293706334,37.31781656,254.15,254.0,20.0]
[1732293706335,6.4945,254.13,254.0,20.0]
[1732293706528,6.4945,254.13,254.01,7.72077914]
[1732293706529,7.72077914,254.08,254.01,7.72077914]
[1732293708538,15.2012,254.15,254.04,7.72077914]
[1732293708720,7.72077914,254.13,254.04,7.72077914]
[1732293709033,7.72077914,254.16,254.08,7.72077914]
[1732293710439,15.7867,254.21,254.11,7.72077914]
[1732293710621,7.72077914,254.19,254.11,7.72077914]
[1732293711830,12.59262273,254.24,254.11,7.72077914]
[1732293712125,7.72077914,254.2,254.11,7.72077914]
[1732293712531,12.59262273,254.24,254.13,7.72077914]
[1732293712836,7.72077914,254.24,254.15,7.72077914]
[1732293713036,23.20277914,254.28,254.19,7.72077914]
[1732293713338,7.72077914,254.28,254.19,7.72077914]
[1732293714233,7.72077914,254.26,254.17,7.72077914]
[1732293714542,7.72077914,254.24,254.17,7.72077914]
[1732293715043,7.72077914,254.24,254.16,20.0]
[1732293715344,7.72077914,254.22,254.16,20.0]
[1732293715513,7.72077914,254.22,254.15,15.416]
[1732293716619,12.04788815,254.22,254.15,15.416]
[1732293719036,12.04788815,254.24,254.16,12.04788815]
[1732293719443,12.04788815,254.26,254.18,12.04788815]
[1732293720522,23.776884,254.29,254.2,12.04788815]
[1732293720828,12.04788815,254.32,254.24,12.04788815]
[1732293721166,12.04788815,254.32,254.26,12.04788815]
[1732293721722,12.04788815,254.34,254.26,12.04788815]
[1732293721938,12.04788815,254.36,254.28,12.04788815]
[1732293723021,12.04788815,254.4,254.32,12.04788815]
[1732293724059,12.04788815,254.38,254.3,12.04788815]
[1732293724425,22.237632,254.43,254.3,12.04788815]
[1732293724426,23.776884,254.42,254.3,12.04788815]
[1732293724615,12.04788815,254.39,254.3,12.04788815]
[1732293725239,12.04788815,254.39,254.32,12.04788815]
[1732293725739,12.04788815,254.37,254.28,12.04788815]
[1732293726043,12.04788815,254.39,254.3,12.04788815]
[1732293726841,12.04788815,254.41,254.32,12.04788815]
[1732293727026,12.04788815,254.41,254.28,6.336]
[1732293727027,12.04788815,254.41,254.34,12.04788815]
[1732293727824,12.04788815,254.41,254.26,28.16468815]
[1732293727825,12.04788815,254.35,254.26,28.16468815]
[1732293728025,12.04788815,254.33,254.24,12.04788815]
[1732293728229,12.04788815,254.31,254.24,12.04788815]
[1732293728426,6.2932,254.39,254.22,12.04788815]
[1732293728427,12.04788815,254.29,254.22,12.04788815]
[1732293728836,12.04788815,254.29,254.2,27.05348815]
[1732293729142,12.04788815,254.27,254.2,27.05348815]
[1732293729526,12.04788815,254.27,254.21,20.0]
[1732293729924,12.04788815,254.29,254.21,20.0]
[1732293730141,12.04788815,254.29,254.23,20.0]
[1732293730529,12.04788815,254.31,254.23,20.0]
[1732293730738,12.04788815,254.29,254.23,20.0]
[1732293730941,12.04788815,254.29,254.2,15.0056]
[1732293730942,23.776884,254.28,254.21,20.0]
[1732293731148,12.04788815,254.27,254.21,20.0]
[1732293731324,12.04788815,254.27,254.2,15.0056]
[1732293732154,12.04788815,254.23,254.14,27.81768815]
[1732293732353,12.04788815,254.21,254.12,12.04788815]
[1732293732649,12.04788815,254.19,254.1,12.04788815]
[1732293733233,12.04788815,254.21,254.12,12.04788815]
[1732293733428,12.04788815,254.19,254.12,12.04788815]
[1732293734544,12.04788815,254.19,254.11,20.0]
[1732293734750,44.73847215,254.28,253.99,2.5]
[1732293734751,12.04788815,254.15,254.06,12.04788815]
[1732293734928,12.04788815,254.15,254.01,16.5283]
[1732293734929,12.04788815,254.13,254.04,12.04788815]
[1732293735248,12.04788815,254.11,254.02,12.04788815]
[1732293735458,12.04788815,254.08,254.01,16.5283]
[1732293736450,12.04788815,254.08,254.0,12.04788815]
[1732293736831,12.04788815,254.15,253.95,16.2046]
[1732293736832,12.04788815,254.06,253.98,12.04788815]
[1732293737628,23.776884,254.07,253.95,16.2046]
[1732293737629,23.776884,254.07,254.0,12.04788815]
[1732293738035,12.04788815,254.11,254.02,12.04788815]
[1732293738236,23.776884,254.1,254.02,12.04788815]
[1732293739343,23.776884,254.12,254.05,12.04788815]
[1732293740549,23.776884,254.1,254.03,12.04788815]
[1732293740939,23.776884,254.1,254.01,12.04788815]
[1732293741139,12.04788815,254.09,254.01,12.04788815]
[1732293742460,12.04788815,254.07,253.99,12.04788815]
[1732293743270,23.776884,254.08,254.01,12.04788815]
[1732293745437,12.04788815,254.07,253.99,12.04788815]
[1732293745659,23.776884,254.06,253.97,12.04788815]
[1732293745956,12.04788815,254.05,253.97,12.04788815]
[1732293746345,23.776884,254.06,253.97,12.04788815]
[1732293747363,23.776884,254.06,253.95,16.2046]
[1732293747364,23.776884,254.08,254.01,12.04788815]
[1732293749539,23.776884,254.1,254.01,12.04788815]
[1732293749856,12.04788815,254.15,254.07,12.04788815]
[1732293751453,6.241,254.16,254.07,12.04788815]
[1732293751454,23.776884,254.14,254.07,12.04788815]
[1732293751651,12.04788815,254.19,254.09,12.04788815]
[1732293751854,12.04788815,254.19,254.11,12.04788815]
[1732293753548,23.776884,254.2,254.13,12.04788815]
[1732293754168,23.776884,254.2,254.15,12.04788815]
[1732293754472,12.04788815,254.23,254.15,12.04788815]
[1732293755569,12.04788815,254.25,254.17,12.04788815]
[1732293756171,12.04788815,254.23,254.15,12.04788815]
[1732293756465,12.04788815,254.21,254.13,12.04788815]
[1732293756647,12.04788815,254.19,254.11,12.04788815]
[1732293757061,12.04788815,254.19,254.1,20.0]
[1732293759075,12.04788815,254.19,254.11,12.04788815]
[1732293759984,12.04788815,254.23,254.15,12.04788815]
[1732293760274,12.04788815,254.25,254.17,12.04788815]
[1732293761258,23.776884,254.24,254.17,12.04788815]
[1732293762449,12.04788815,254.31,254.23,12.04788815]
[1732293762778,12.04788815,254.33,254.25,12.04788815]
[1732293763653,12.04788815,254.35,254.27,12.04788815]
[1732293763862,12.04788815,254.37,254.29,12.04788815]
[1732293764452,12.04788815,254.41,254.33,12.04788815]
[1732293764756,12.04788815,254.43,254.35,12.04788815]
[1732293764969,12.04788815,254.45,254.35,12.04788815]
[1732293765873,12.04788815,254.47,254.37,12.04788815]
[1732293766050,12.04788815,254.45,254.37,12.04788815]
[1732293768265,23.776884,254.44,254.37,12.04788815]
[1732293769557,12.04788815,254.51,254.43,12.04788815]
[1732293769755,143.3421,254.59,254.45,12.04788815]
[1732293769956,12.04788815,254.53,254.45,12.04788815]
[1732293770360,9.75645236,254.67,254.5,12.04788815]
[1732293770564,12.04788815,254.59,254.52,12.04788815]
[1732293770764,12.04788815,254.59,254.5,12.04788815]
[1732293772081,23.776884,254.58,254.5,12.04788815]
[1732293773885,23.776884,254.58,254.52,12.04788815]
[1732293774079,23.776884,254.6,254.52,12.04788815]
[1732293774668,12.04788815,254.63,254.54,12.04788815]
[1732293775062,12.04788815,254.67,254.58,12.04788815]
[1732293776276,12.04788815,254.67,254.6,12.04788815]
[1732293776784,12.04788815,254.71,254.64,12.04788815]
[1732293777087,12.04788815,254.69,254.62,12.04788815]
[1732293778090,23.776884,254.68,254.62,12.04788815]
[1732293778965,6.404,254.79,254.66,12.04788815]
[1732293779172,12.04788815,254.71,254.62,12.04788815]
[1732293779373,12.04788815,254.69,254.62,20.0]
[1732293780588,23.776884,254.68,254.62,32.04788815]
[1732293781495,23.776884,254.68,254.61,20.0]
[1732293781670,2.5,254.85,254.67,12.04788815]
[1732293781870,12.04788815,254.78,254.7,12.04788815]
[1732293783484,23.776884,254.77,254.7,12.04788815]
[1732293784203,23.776884,254.79,254.7,12.04788815]
[1732293784774,23.776884,254.77,254.7,12.04788815]
[1732293784982,12.04788815,254.76,254.68,32.04788815]
[1732293785599,12.04788815,254.76,254.67,6.4207]
[1732293785600,12.04788815,254.74,254.67,20.0]
[1732293785798,23.776884,254.73,254.67,20.0]
[1732293786796,12.04788815,254.76,254.68,12.04788815]
[1732293787006,146.1564,254.85,254.68,12.04788815]
[1732293787007,23.776884,254.77,254.68,12.04788815]
[1732293787299,23.776884,254.77,254.7,12.04788815]
[1732293789505,23.776884,254.79,254.72,12.04788815]
[1732293790184,12.04788815,254.82,254.72,12.04788815]
[1732293791476,23.776884,254.81,254.72,12.04788815]
[1732293792099,12.04788815,254.8,254.72,12.04788815]
[1732293792300,23.776884,254.79,254.71,20.0]
[1732293792608,12.04788815,254.78,254.71,20.0]
[1732293792778,12.04788815,254.76,254.68,12.04788815]
[1732293793089,23.776884,254.77,254.69,20.0]
[1732293793683,23.776884,254.77,254.7,12.04788815]
[1732293794782,12.04788815,254.76,254.69,20.0]
[1732293795002,12.04788815,254.76,254.68,12.04788815]
[1732293795203,12.04788815,254.76,254.69,20.0]
[1732293796708,12.04788815,254.76,254.68,12.04788815]
[1732293796909,12.04788815,254.76,254.66,12.04788815]
[1732293797083,12.04788815,254.72,254.61,6.657]
[1732293797281,12.04788815,254.67,254.6,16.6178]
[1732293797798,23.776884,254.66,254.6,16.6178]
[1732293798002,23.776884,254.64,254.57,12.04788815]
[1732293798211,23.776884,254.64,254.54,15.6757]
[1732293798212,12.04788815,254.61,254.54,15.6757]
[1732293798515,12.04788815,254.63,254.54,15.6757]
[1732293798910,23.776884,254.62,254.55,12.04788815]
[1732293799211,12.04788815,254.65,254.57,12.04788815]
[1732293799401,23.776884,254.64,254.55,12.04788815]
[1732293799996,12.04788815,254.63,254.55,12.04788815]
[1732293800203,12.04788815,254.63,254.54,15.6757]
[1732293800723,23.776884,254.62,254.54,15.6757]
[1732293801590,12.04788815,254.59,254.5,12.04788815]
[1732293801897,12.04788815,254.57,254.48,28.66568815]
[1732293802692,12.04788815,254.55,254.48,16.6178]
[1732293802913,23.776884,254.52,254.44,12.04788815]
[1732293803095,12.04788815,254.51,254.43,6.5712]
[1732293803296,12.04788815,254.51,254.42,28.21278815]
[1732293803612,23.776884,254.5,254.42,28.21278815]
[1732293804610,12.04788815,254.5,254.42,28.21278815]
[1732293804806,12.04788815,254.48,254.43,20.0]
[1732293805392,23.776884,254.49,254.43,20.0]
[1732293806812,12.04788815,254.52,254.43,20.0]
[1732293806999,23.776884,254.51,254.43,20.0]
[1732293807312,12.04788815,254.5,254.43,20.0]
[1732293807494,12.04788815,254.5,254.42,16.1649]
[1732293807815,12.04788815,254.5,254.43,20.0]
[1732293810416,23.776884,254.51,254.43,20.0]
[1732293810996,23.776884,254.51,254.44,12.04788815]
[1732293811711,23.776884,254.51,254.43,20.0]
[1732293811712,137.3,254.63,254.48,12.04788815]
[1732293811899,12.04788815,254.59,254.48,12.04788815]
[1732293813010,23.776884,254.58,254.48,12.04788815]
[1732293813800,23.776884,254.58,254.5,12.04788815]
[1732293814016,12.04788815,254.61,254.52,12.04788815]
[1732293815427,23.776884,254.56,254.48,12.04788815]
[1732293817496,23.776884,254.56,254.42,16.1649]
[1732293817497,12.04788815,254.59,254.52,12.04788815]
[1732293817706,23.776884,254.58,254.5,12.04788815]
[1732293818219,23.776884,254.56,254.48,12.04788815]
[1732293818420,12.04788815,254.55,254.48,12.04788815]
[1732293820522,12.04788815,254.59,254.52,12.04788815]
[1732293822021,12.04788815,254.53,254.47,20.0]
[1732293822230,23.776884,254.52,254.44,12.04788815]
[1732293824825,23.776884,254.52,254.42,16.1649]
[1732293824826,12.04788815,254.57,254.48,12.04788815]
[1732293825009,23.776884,254.56,254.48,12.04788815]
[1732293825808,12.04788815,254.59,254.5,12.04788815]
[1732293827529,23.776884,254.58,254.5,12.04788815]
[1732293827721,23.776884,254.56,254.48,12.04788815]
[1732293828330,12.04788815,254.55,254.48,12.04788815]
[1732293828532,23.776884,254.52,254.44,12.04788815]
[1732293829519,12.04788815,254.57,254.48,12.04788815]
[1732293829704,23.776884,254.56,254.48,12.04788815]
[1732293830105,12.04788815,254.55,254.46,12.04788815]
[1732293830304,23.776884,254.54,254.46,12.04788815]
[1732293831625,23.776884,254.56,254.48,12.04788815]
[1732293832903,23.776884,254.56,254.5,12.04788815]
[1732293833116,23.776884,254.58,254.5,12.04788815]
[1732293833531,23.776884,254.56,254.48,12.04788815]
[1732293833769,12.04788815,254.55,254.46,12.04788815]
[1732293834028,23.776884,254.54,254.46,12.04788815]
[1732293834636,23.776884,254.54,254.47,20.0]
[1732293835211,12.04788815,254.53,254.43,20.0]
[1732293835412,12.04788815,254.53,254.45,20.0]
[1732293835627,23.776884,254.54,254.47,20.0]
[1732293836731,23.776884,254.54,254.46,12.04788815]
[1732293838529,23.776884,254.54,254.48,12.04788815]
[1732293839231,15.1054,254.64,254.52,12.04788815]
[1732293839407,12.04788815,254.59,254.5,12.04788815]
[1732293839611,12.04788815,254.57,254.48,12.04788815]
[1732293840014,15.1054,254.64,254.42,16.1649]
[1732293840015,12.04788815,254.55,254.46,12.04788815]
[1732293840220,12.04788815,254.53,254.44,12.04788815]
[1732293840435,12.04788815,254.53,254.45,20.0]
[1732293840613,12.04788815,254.55,254.46,12.04788815]
[1732293841023,23.776884,254.54,254.46,12.04788815]
[1732293841262,12.04788815,254.53,254.44,12.04788815]
[1732293841540,23.776884,254.54,254.46,12.04788815]
[1732293844328,12.04788815,254.53,254.44,12.04788815]
[1732293844519,23.776884,254.48,254.4,12.04788815]
[1732293846035,12.04788815,254.49,254.37,6.5261]
[1732293846036,12.04788815,254.54,254.44,12.04788815]
[1732293846244,12.04788815,254.52,254.44,12.04788815]
[1732293846543,12.04788815,254.5,254.4,12.04788815]
[1732293846751,12.04788815,254.48,254.4,12.04788815]
[1732293846950,23.776884,254.47,254.4,12.04788815]
[1732293847817,23.776884,254.47,254.38,20.0]
[1732293847818,12.04788815,254.52,254.44,12.04788815]
[1732293848017,23.776884,254.51,254.44,12.04788815]
[1732293848236,12.04788815,254.54,254.46,12.04788815]
[1732293848929,12.04788815,254.58,254.5,12.04788815]
[1732293849347,12.04788815,254.58,254.48,12.04788815]
[1732293849641,12.04788815,254.56,254.48,12.04788815]
[1732293850226,23.776884,254.55,254.48,12.04788815]
[1732293850731,23.776884,254.53,254.48,12.04788815]
[1732293851141,23.776884,254.55,254.48,12.04788815]
[1732293851321,23.776884,254.57,254.5,12.04788815]
[1732293852129,12.04788815,254.62,254.52,12.04788815]
[1732293852324,12.04788815,254.62,254.54,12.04788815]
[1732293853041,12.04788815,254.62,254.48,15.4854]
[1732293853042,12.04788815,254.62,254.52,12.04788815]
[1732293853244,12.04788815,254.6,254.52,12.04788815]
[1732293853628,23.776884,254.59,254.52,12.04788815]
[1732293855340,23.776884,254.61,254.52,12.04788815]
[1732293855739,23.776884,254.63,254.56,12.04788815]
[1732293856266,23.776884,254.6,254.53,12.04788815]
[1732293859335,33.53363215,254.67,254.54,20.0]
[1732293859336,23.776884,254.62,254.54,20.0]
[1732293860733,12.04788815,254.61,254.49,20.0]
[1732293860933,23.776884,254.56,254.49,12.04788815]
[1732293861264,23.776884,254.56,254.48,21.7575]
[1732293861265,23.776884,254.54,254.48,15.4854]
[1732293861562,23.776884,254.52,254.45,12.04788815]
[1732293862063,23.776884,254.5,254.43,12.04788815]
[1732293862433,23.776884,254.52,254.43,12.04788815]
[1732293862758,12.04788815,254.49,254.41,12.04788815]
[1732293862961,23.776884,254.48,254.41,12.04788815]
[1732293863138,23.776884,254.46,254.39,12.04788815]
[1732293863658,23.776884,254.41,254.36,15.1548]
[1732293864046,23.776884,254.41,254.22,5.0]
[1732293864047,23.776884,254.37,254.22,16.559]
[1732293864239,23.776884,254.37,254.28,12.04788815]
[1732293864835,23.776884,254.35,254.28,12.04788815]
[1732293866539,23.776884,254.37,254.28,12.04788815]
[1732293866853,23.776884,254.37,254.3,12.04788815]
[1732293867062,22.1968,254.44,254.3,12.04788815]
[1732293867063,23.776884,254.39,254.3,12.04788815]
[1732293867445,23.776884,254.37,254.3,12.04788815]
[1732293867645,23.776884,254.35,254.26,12.04788815]
[1732293868238,23.776884,254.35,254.27,20.0]
[1732293869334,23.776884,254.35,254.28,12.04788815]
[1732293869948,23.776884,254.35,254.26,12.04788815]
[1732293870248,23.776884,254.35,254.27,20.0]
[1732293870445,12.04788815,254.32,254.24,12.04788815]
[1732293870747,23.776884,254.31,254.24,12.04788815]
[1732293871737,23.776884,254.33,254.26,12.04788815]
[1732293872756,23.776884,254.31,254.24,12.04788815]
[1732293872954,23.776884,254.31,254.22,16.559]
[1732293872955,23.776884,254.29,254.2,12.04788815]
[1732293874044,23.776884,254.31,254.24,12.04788815]
[1732293874236,23.776884,254.33,254.24,12.04788815]
[1732293874649,23.776884,254.31,254.24,12.04788815]
[1732293875368,23.776884,254.29,254.22,12.04788815]
[1732293875755,12.04788815,254.24,254.19,20.0]
[1732293876067,12.04788815,254.24,254.16,27.72828815]
[1732293876255,12.04788815,254.26,254.18,12.04788815]
[1732293876460,12.04788815,254.24,254.16,15.6804]
[1732293876669,23.776884,254.23,254.16,12.04788815]
[1732293877767,23.776884,254.25,254.18,12.04788815]
[1732293878069,23.776884,254.29,254.22,12.04788815]
[1732293878272,12.04788815,254.32,254.24,12.04788815]
[1732293878444,12.04788815,254.3,254.22,12.04788815]
[1732293879453,12.04788815,254.3,254.2,12.04788815]
[1732293879869,12.04788815,254.28,254.2,12.04788815]
[1732293880168,23.776884,254.27,254.2,12.04788815]
[1732293880469,23.776884,254.29,254.2,12.04788815]
[1732293881644,12.04788815,254.28,254.2,12.04788815]
[1732293881842,12.04788815,254.26,254.18,12.04788815]
[1732293882165,23.776884,254.25,254.17,20.0]
[1732293882471,23.776884,254.23,254.17,20.0]
[1732293882760,23.776884,254.23,254.15,20.0]
[1732293882977,12.04788815,254.24,254.17,20.0]
[1732293885369,23.776884,254.23,254.17,20.0]
[1732293887264,23.776884,254.23,254.18,12.04788815]
[1732293887650,23.776884,254.25,254.18,12.04788815]
[1732293888449,23.776884,254.25,254.16,12.04788815]
[1732293889253,23.776884,254.25,254.2,12.04788815]
[1732293889463,12.04788815,254.26,254.18,12.04788815]
[1732293889767,23.776884,254.25,254.2,12.04788815]
[1732293889971,23.776884,254.27,254.2,12.04788815]
[1732293892152,12.04788815,254.26,254.18,12.04788815]
[1732293892475,23.776884,254.25,254.18,12.04788815]
[1732293893282,23.776884,254.23,254.17,20.0]
[1732293893975,23.776884,254.25,254.17,20.0]
[1732293894177,23.776884,254.25,254.18,12.04788815]
[1732293896576,23.776884,254.23,254.16,12.04788815]
[1732293896754,12.04788815,254.22,254.14,12.04788815]
[1732293896958,12.04788815,254.18,254.1,27.84498815]
[1732293897362,23.776884,254.19,254.12,12.04788815]
[1732293898084,23.776884,254.21,254.12,12.04788815]
[1732293898256,23.776884,254.19,254.12,12.04788815]
[1732293899955,12.04788815,254.18,254.1,27.84498815]
[1732293900264,23.776884,254.17,254.1,27.84498815]
[1732293900473,12.04788815,254.26,254.16,12.04788815]
[1732293900668,12.04788815,254.24,254.16,12.04788815]
[1732293900978,23.776884,254.23,254.16,12.04788815]
[1732293901179,23.776884,254.23,254.14,12.04788815]
[1732293901180,12.04788815,254.22,254.14,12.04788815]
[1732293901481,12.04788815,254.26,254.16,12.04788815]
[1732293901675,12.04788815,254.28,254.19,12.04788815]
[1732293902863,23.776884,254.27,254.19,12.04788815]
[1732293903170,12.04788815,254.3,254.23,12.04788815]
[1732293903377,12.04788815,254.3,254.15,12.04788815]
[1732293903378,12.04788815,254.34,254.27,12.04788815]
[1732293903682,12.04788815,254.36,254.27,12.04788815]
[1732293903868,12.04788815,254.33,254.25,12.04788815]
[1732293904958,12.04788815,254.29,254.21,27.59438815]
[1732293905156,23.776884,254.28,254.23,12.04788815]
[1732293905575,23.776884,254.3,254.23,12.04788815]
[1732293905779,12.04788815,254.29,254.21,27.59438815]
[1732293906085,23.776884,254.26,254.21,15.5465]